[Event "GER-ch Youth-U18w 2023"]
[Site "Willingen"]
[Date "2023.06.03"]
[Round "9.1"]
[White "Wagner, Margarethe"]
[Black "Buchholz, Maja Patricia"]
[Result "0-1"]
[Annotator "NA RC COMBH"]
[ECO "C06"]
[WhiteElo "1831"]
[BlackElo "1899"]
[PlyCount "154"]
[EventDate "2022.06.05"]
[EventType "swiss"]
[EventRounds "9"]
[EventCountry "GER"]
[SourceTitle "playchess.com"]
[Source "ChessBase"]
[SourceQuality "1"]
[TimeControl "40/4500+30:900+30"]

1. e4 {[%emt 0:00:00]} e6 {[%emt 0:00:00]} 2. d4 {[%emt 0:00:00]} d5 {[%emt 0:00:00]} 3. Nd2 {[%emt 0:00:00]} Be7 {[%emt 0:00:00]} 4. Ngf3 {[%emt 0:00:00]} Nf6 {[%emt 0:00:00]} 5. e5 {[%emt 0:00:00]} Nfd7 {[%emt 0:00:00]} 6. c3 {[%emt 0:00:00]} c5 {[%emt 0:00:00]} 7. Bd3 {[%emt 0:00:00]} Nc6 {[%emt 0:00:00]} 8. O-O {[%emt 0:00:00]} Qb6 {[%emt 0:00:00]} 9. dxc5 {[%emt 0:00:00]} Nxc5 {[%emt 0:00:41]} (9... Qc7 $1 $11 {might be stronger.}) 10. Bc2 {[%emt 0:00:36]} Qc7 {[%emt 0:05:24] is the legacy move (10...f6).} 11. Qe2 {[%emt 0:07:02]} b6 {[%emt 0:03:13]} 12. Re1 {[%emt 0:11:57]} Ba6 {[%emt 0:10:18]} 13. Qe3 {[%emt 0:07:25] [#]} h6 $146 {[%emt 0:15:04]} ({Predecessor:} 13... Nd7 14. Nb3 g5 15. Nbd4 Nxd4 16. Nxd4 h5 17. a4 h4 18. b4 g4 19. b5 Bb7 {0-1 Hansen,V (1912)-Manakova,M (2274) Terre degli Elimi op 7th 2016 (2)}) 14. Nd4 {[%emt 0:07:38]} Nd7 {[%emt 0:10:42]} 15. Nxc6 {[%emt 0:05:37]} Qxc6 {[%emt 0:00:04]} 16. Nf3 {[%emt 0:00:11]} Bc5 {[%emt 0:08:39]} 17. Nd4 {[%emt 0:10:06]} Qc7 {[%emt 0:00:47]} 18. Qf4 {[%emt 0:03:00]} g5 {[%emt 0:02:46]} 19. Qe3 {[%emt 0:03:45]} O-O-O {[%emt 0:02:20]} 20. b4 {[%emt 0:11:42]} Bxd4 {[%emt 0:03:55]} 21. Qxd4 {[%emt 0:00:07]} Bc4 {[%emt 0:01:19]} 22. a4 {[%emt 0:01:44]} Rdg8 {[%emt 0:02:42]} 23. Ba3 {[%emt 0:03:04]} h5 {[%emt 0:03:37]} 24. Rab1 {[%emt 0:03:20]} (24. b5 $16) 24... g4 {[%emt 0:03:28]} 25. b5 {[%emt 0:03:15]} Nc5 {[%emt 0:00:53]} 26. a5 $11 {[%emt 0:00:14]} Kd7 {[%emt 0:04:05]} 27. Qe3 {[%emt 0:01:28]} Rb8 {[%emt 0:01:52]} 28. Qf4 {[%emt 0:01:19]} Kc8 {[%emt 0:01:11]} 29. Bxc5 {[%emt 0:02:04]} bxc5 {[%emt 0:00:15]} 30. b6 {[%emt 0:00:38]} axb6 {[%emt 0:01:52]} 31. axb6 {[%emt 0:00:05]} Qe7 {[%emt 0:00:44]} 32. Rb2 {[%emt 0:01:25]} Kb7 {[%emt 0:00:40]} 33. Ra1 {[%emt 0:00:13]} Ra8 {[%emt 0:00:40]} 34. Ra7+ {[%emt 0:01:12]} Rxa7 {[%emt 0:00:04]} 35. bxa7+ {[%emt 0:00:04]} Ka8 {[%emt 0:01:37]} 36. Ba4 {[%emt 0:01:18]} Kxa7 {[%emt 0:00:55]} 37. Qc1 {[%emt 0:01:54]} Rb8 {[%emt 0:00:21]} 38. Bb3 {[%emt 0:00:39]} Rxb3 {[%emt 0:00:26]} 39. Rxb3 {[%emt 0:00:13]} Bxb3 {[%emt 0:00:04]} 40. Qa3+ {[%emt 0:00:05]} Kb8 {[%emt 0:00:12]} 41. Qxb3+ {[%emt 0:15:11]} Qb7 {[%emt 0:00:00]} 42. Qc2 {[%emt 0:00:00]} d4 {[%emt 0:01:11]} 43. g3 {[%emt 0:00:00]} Qd5 {[%emt 0:01:54]} 44. cxd4 {[%emt 0:00:00]} Qxd4 {[%emt 0:01:44]} 45. Qb1+ {[%emt 0:00:00]} Kc7 {[%emt 0:01:30]} 46. Qh7 {[%emt 0:00:00]} Qd1+ {[%emt 0:01:13]} 47. Kg2 {[%emt 0:00:00]} Qf3+ {[%emt 0:00:02]} 48. Kg1 {[%emt 0:00:00]} Qf5 {[%emt 0:03:03]} 49. Qh8 {[%emt 0:00:00]} Kc6 {[%emt 0:01:29]} 50. Qa8+ {[%emt 0:00:00]} Kb5 {[%emt 0:00:04]} 51. Qb7+ {[%emt 0:00:00]} Kc4 {[%emt 0:00:09]} 52. Qa6+ {[%emt 0:00:00]} Kd5 {[%emt 0:00:10]} 53. Qd6+ {[%emt 0:00:00]} Kc4 {[%emt 0:00:29]} 54. Qa6+ {[%emt 0:00:00]} Kc3 {[%emt 0:00:13]} 55. Qa5+ {[%emt 0:00:00]} Kd4 {[%emt 0:00:13]} 56. Qa1+ {[%emt 0:00:00]} Kd5 {[%emt 0:00:32]} 57. Qa8+ {[%emt 0:00:00]} Kxe5 {[%emt 0:00:09]} 58. Qh8+ {[%emt 0:00:00]} Ke4 {[%emt 0:00:27]} 59. Qc3 {[%emt 0:00:00]} Qd5 {[%emt 0:01:30]} 60. Qe3+ {[%emt 0:00:00]} Kf5 {[%emt 0:00:06]} 61. Qh6 {[%emt 0:00:00]} Qd1+ {[%emt 0:01:44]} 62. Kg2 {[%emt 0:00:00]} Qf3+ {[%emt 0:00:08]} 63. Kg1 {[%emt 0:00:00]} c4 {[%emt 0:00:56]} 64. Qh7+ {[%emt 0:04:26]} Kf6 {[%emt 0:00:55]} 65. Qh6+ {[%emt 0:00:57]} Ke7 {[%emt 0:03:04]} 66. Qg5+ {[%emt 0:00:07]} Kd6 {[%emt 0:00:58]} 67. Qd8+ {[%emt 0:01:25]} Kc5 {[%emt 0:00:30]} 68. Qc7+ {[%emt 0:00:39]} Kd4 {[%emt 0:00:38]} 69. Qd7+ {[%emt 0:00:38]} Kc3 {[%emt 0:00:21]} 70. Qd6 {[%emt 0:01:39]} Kc2 {[%emt 0:00:28]} 71. Qa6 {[%emt 0:01:47]} c3 {[%emt 0:00:27]} 72. Qa4+ {[%emt 0:00:59]} Kd2 {[%emt 0:00:37]} 73. Qd7+ {[%emt 0:00:25]} Ke1 {[%emt 0:01:24]} 74. Qd4 {[%emt 0:01:29]} c2 {[%emt 0:00:39]} 75. Qb4+ {[%emt 0:00:48]} Ke2 {[%emt 0:00:30]} 76. Qb5+ {[%emt 0:00:50]} Qd3 {[%emt 0:00:15]} 77. Qe5+ {[%emt 0:00:14]} Kd1 {[%emt 0:00:03]} 0-1

[Event "GER-ch Youth-U18w 2023"]
[Site "Willingen"]
[Date "2023.06.03"]
[Round "9.2"]
[White "Groeschel, Karoline"]
[Black "Reuter, Elisa"]
[Result "1/2-1/2"]
[Annotator "TA"]
[ECO "B31"]
[WhiteElo "1892"]
[BlackElo "1944"]
[PlyCount "103"]
[EventDate "2022.06.05"]
[EventType "swiss"]
[EventRounds "9"]
[EventCountry "GER"]
[SourceTitle "playchess.com"]
[Source "ChessBase"]
[SourceQuality "1"]
[TimeControl "40/4500+30:900+30"]

{[%evp 13,103,24,36,25,36,15,26,6,33,9,49,48,66,46,43,42,49,29,52,12,42,0,52,56,49,51,50,37,59,54,63,62,66,63,62,54,54,48,58,20,28,26,88,27,62,39,39,33,40,42,36,42,44,18,26,0,0,0,18,0,0,0,0,0,0,0,0,0,0,0,0,0,0,0,0,0,3,0,0,0,0,0,3,3,2,3,5,5,8,0,0,0]} 1. e4 {[%emt 0:00:00]} c5 {[%emt 0:00:00]} 2. Nf3 {[%emt 0:00:00]} Nc6 {[%emt 0:00:00]} 3. Bb5 {[%emt 0:00:00]} g6 {[%emt 0:00:00]} 4. Bxc6 {[%emt 0:00:00]} dxc6 {[%emt 0:00:00]} 5. d3 {[%emt 0:00:00]} Bg7 {[%emt 0:00:00]} 6. h3 {[%emt 0:00:00]} e5 {[%emt 0:00:00]} 7. O-O {[%emt 0:00:00]} Qe7 {[%emt 0:00:00]} 8. a4 {[%emt 0:00:00] B31: Sicilian: 2...Nc6 3 Bb5 g6.} Nf6 {[%emt 0:00:00][%cal Bg8f6,Bf6e8,Be8d6][%mdl 32]} 9. a5 {[%emt 0:00:00]} (9. Bg5 $5) 9... O-O {[%emt 0:00:00][%cal Oc5c4]} 10. Nc3 {[%emt 0:00:00] White has an edge.} Rb8 {[%emt 0:00:00] [#]} 11. Nh2 $146 {[%emt 0:00:00]} ({Predecessor:} 11. Be3 b6 12. axb6 axb6 13. Qd2 Rd8 14. Nxe5 Bb7 15. f4 Nh5 16. Qf2 Rf8 17. Nc4 {1-0 Dek,L (2335)-Regoli,S (2256) PRO League Stage rapid 2019 (7)}) 11... Ne8 {[%emt 0:19:53]} 12. f4 {[%emt 0:07:57]} f6 {[%emt 0:20:51]} 13. f5 {[%emt 0:19:30]} Nd6 {[%emt 0:07:05][%cal Rg6f5]} 14. fxg6 {[%emt 0:11:39]} hxg6 {[%emt 0:00:09]} 15. Be3 {[%emt 0:00:29]} b6 {[%emt 0:00:52]} 16. Qd2 {[%emt 0:05:45]} Be6 {[%emt 0:03:08]} 17. Bh6 {[%emt 0:09:05]} Bxh6 {[%emt 0:01:32]} (17... c4 $11) 18. Qxh6 $14 {[%emt 0:00:09]} Qg7 {[%emt 0:02:48]} 19. Qe3 {[%emt 0:02:03]} Rb7 {[%emt 0:02:50]} 20. Nf3 {[%emt 0:02:43]} Qh7 {[%emt 0:04:32]} 21. Qf2 {[%emt 0:03:34][%cal Of3e5] Nxe5! is the strong threat.} Qg7 {[%emt 0:02:30]} 22. axb6 {[%emt 0:02:33]} axb6 {[%emt 0:00:04]} 23. Ra6 {[%emt 0:01:30]} Rfb8 {[%emt 0:03:25]} 24. Nh4 {[%emt 0:05:12]} Rf7 {[%emt 0:01:26]} 25. Qg3 {[%emt 0:01:06]} g5 {[%emt 0:01:27] aiming for ...Bc8.} 26. Nf3 {[%emt 0:01:37]} Bc8 {[%emt 0:01:05]} 27. Raa1 {[%emt 0:00:44]} Be6 {[%emt 0:00:23] [#]} (27... g4 $11 {remains equal.}) 28. Rf2 {[%emt 0:00:50]} (28. Nh2 $1 $16) 28... Rbf8 {[%emt 0:01:20]} 29. Raf1 {[%emt 0:00:40]} (29. Ra6 $5 {[%cal Ra6b6]}) 29... g4 {[%emt 0:05:54]} 30. hxg4 {[%emt 0:01:26]} Qxg4 {[%emt 0:00:17]} 31. Qxg4+ {[%emt 0:03:21]} Bxg4 {[%emt 0:00:05]} 32. Na4 {[%emt 0:02:58]} Nc8 {[%emt 0:00:44]} 33. Nh4 {[%emt 0:01:39] Black must now prevent Ng6.} Kg7 {[%emt 0:00:58] Dodges Ng6} 34. Nf5+ {[%emt 0:00:47]} Bxf5 {[%emt 0:00:20] The position is equal.} 35. Rxf5 {[%emt 0:00:04]} Rh8 {[%emt 0:01:29]} 36. g4 {[%emt 0:02:44]} Rh4 {[%emt 0:01:39]} 37. g5 {[%emt 0:01:17][%cal Rg5f6]} Rg4+ {[%emt 0:00:04]} 38. Kh2 {[%emt 0:01:01][%cal Rg5f6]} Rxg5 {[%emt 0:00:36]} 39. Rxg5+ {[%emt 0:00:17]} fxg5 {[%emt 0:00:10]} 40. Rxf7+ {[%emt 0:00:15]} Kxf7 $11 {[%emt 0:00:05][%mdl 4096] Endgame KN-KN} 41. Kg3 {[%emt 0:15:07]} Ke6 {[%emt 0:18:13]} 42. Kg4 {[%emt 0:00:00]} Kd6 {[%emt 0:00:00]} 43. Kxg5 {[%emt 0:00:00]} b5 {[%emt 0:00:00]} 44. Nc3 {[%emt 0:00:00]} Ke6 {[%emt 0:00:00]} 45. Ne2 {[%emt 0:00:00]} Nb6 {[%emt 0:00:00]} 46. b3 {[%emt 0:00:00]} Nd7 {[%emt 0:00:00]} 47. Ng3 {[%emt 0:00:00]} Nb8 {[%emt 0:00:00]} 48. Nf5 {[%emt 0:00:00]} Nd7 {[%emt 0:00:00]} 49. Kg6 {[%emt 0:00:00] Black should prevent Ng7+.} Nf8+ {[%emt 0:00:00]} 50. Kg7 {[%emt 0:00:00]} Nd7 {[%emt 0:00:00]} 51. Nh6 {[%emt 0:00:57]} c4 {[%emt 0:00:00]} 52. bxc4 {[%emt 0:01:43] Weighted Error Value: White=0.11 (very precise) /Black=0.11 (very precise)} 1/2-1/2

[Event "GER-ch Youth-U18w 2023"]
[Site "Willingen"]
[Date "2023.06.03"]
[Round "9.3"]
[White "Heutling, Elina"]
[Black "Doll, Rebecca"]
[Result "1/2-1/2"]
[Annotator "TA"]
[ECO "C77"]
[WhiteElo "1878"]
[BlackElo "1918"]
[PlyCount "103"]
[EventDate "2022.06.05"]
[EventType "swiss"]
[EventRounds "9"]
[EventCountry "GER"]
[SourceTitle "playchess.com"]
[Source "ChessBase"]
[SourceQuality "1"]
[TimeControl "40/4500+30:900+30"]

{[%evp 13,103,0,0,0,0,0,13,8,79,79,73,76,92,40,33,14,20,-16,-8,-2,0,-15,-10,-25,-40,-57,16,-101,-84,-106,-64,-62,-56,-52,-50,-96,-91,-130,-89,-96,-5,-79,-2,-7,0,-25,0,-46,-52,-47,-9,-9,-9,-10,-10,-38,0,0,0,0,0,0,0,0,0,0,0,0,0,0,0,0,0,0,0,0,0,0,0,0,0,0,0,0,0,0,0,0,0,0,0,0]} 1. e4 {[%emt 0:00:00]} e5 {[%emt 0:00:00]} 2. Nf3 {[%emt 0:00:00]} Nc6 {[%emt 0:00:00]} 3. Bb5 {[%emt 0:00:00]} a6 {[%emt 0:00:00]} 4. Ba4 {[%emt 0:00:00]} Nf6 {[%emt 0:00:00]} 5. d3 {[%emt 0:00:00]} d6 {[%emt 0:00:00]} 6. c4 {[%emt 0:00:00]} g6 {[%emt 0:00:00]} 7. Nc3 {[%emt 0:00:00]} Bg7 {[%emt 0:00:00]} 8. Nd5 {[%emt 0:00:00] C77: Ruy Lopez: 3...a6 4 Ba4 Nf6, unusual lines.} O-O {[%emt 0:00:00]} 9. Bg5 {[%emt 0:00:00]} Be6 {[%emt 0:09:05]} 10. O-O {[%emt 0:00:00]} Bxd5 {[%emt 0:15:41]} (10... Na7 $11) 11. cxd5 $16 {[%emt 0:00:32] [#]} ({Much weaker is} 11. exd5 Ne7 $14) 11... Nb8 $146 {[%emt 0:04:52]} ({Predecessor:} 11... Ne7 12. Rc1 h6 13. Bd2 Nh5 14. Ba5 Rc8 15. Qc2 b6 16. Bd2 f5 17. Bc6 g5 {0-1 Urazayev,A (2438)-Pranav,V (2486) Titled Tuesday intern op 01st Feb-B blitz 2022 (9)}) 12. Rc1 {[%emt 0:07:59] White is more active.} Nbd7 {[%emt 0:02:35]} 13. Bxd7 {[%emt 0:00:52]} ({White should try} 13. h3 $16) 13... Qxd7 $14 {[%emt 0:00:07]} 14. Bxf6 {[%emt 0:00:04]} Bxf6 {[%emt 0:00:07]} 15. a4 {[%emt 0:14:20]} Rfc8 {[%emt 0:04:04]} 16. b4 {[%emt 0:12:29]} c6 {[%emt 0:09:47]} 17. Qb3 {[%emt 0:06:50]} Rc7 {[%emt 0:14:07]} 18. Rc2 {[%emt 0:10:05]} Rac8 {[%emt 0:00:29]} 19. Rfc1 {[%emt 0:06:27]} Bg7 {[%emt 0:04:25]} (19... cxd5 $15 20. exd5 (20. Rxc7 Rxc7 21. Rxc7 Qxc7 $17) 20... Rxc2 21. Rxc2 b5 22. Rxc8+ Qxc8) 20. Rc4 {[%emt 0:01:20] [#]} (20. dxc6 $11 bxc6 21. Rb2) 20... cxd5 $1 $17 {[%emt 0:01:37]} 21. exd5 {[%emt 0:01:32]} b5 {[%emt 0:04:17]} 22. axb5 {[%emt 0:03:37]} axb5 {[%emt 0:00:07]} 23. Rxc7 {[%emt 0:00:36]} Rxc7 {[%emt 0:00:04]} 24. Rxc7 {[%emt 0:08:32]} (24. Qa3 $15 {deserves consideration.}) 24... Qxc7 $15 {[%emt 0:00:03][%mdl 4096] Endgame KQB-KQN} 25. Qa3 {[%emt 0:00:13] Wards off Qc1+} Qb7 {[%emt 0:03:29]} 26. Qa2 {[%emt 0:01:11]} h6 {[%emt 0:01:49]} (26... Qc8 $17 {( -> ...Qc1+)} 27. Qa3 Qc2) 27. Nd2 {[%emt 0:02:18] [#]} (27. h4 $11 {remains equal.}) 27... f5 {[%emt 0:00:16]} (27... Qc8 $1 $17 {Threatens to win with ...Qc3.} 28. Qa3 Qc2) 28. h3 {[%emt 0:02:42]} Bf6 {[%emt 0:02:22]} 29. Nb1 {[%emt 0:01:47]} Kf7 {[%emt 0:02:52]} 30. Kh1 {[%emt 0:03:26]} (30. Qc2 $11) 30... Qc7 {[%emt 0:03:16]} 31. Qd2 {[%emt 0:01:04] Against Qc1+} Bg5 {[%emt 0:01:54]} 32. Qc3 {[%emt 0:01:28]} Qxc3 {[%emt 0:01:10]} 33. Nxc3 $11 {[%emt 0:00:01] KB-KN} Bd2 {[%emt 0:00:11]} 34. Na2 {[%emt 0:00:50]} Ke7 {[%emt 0:02:17]} 35. Kg1 {[%emt 0:00:16] The position is equal.} Kd7 {[%emt 0:00:17]} 36. Kf1 {[%emt 0:00:06] And now Ke2 would win.} Kc7 {[%emt 0:00:22]} 37. Ke2 {[%emt 0:00:58]} Bg5 {[%emt 0:00:12]} 38. Nc3 {[%emt 0:00:34]} Kb6 {[%emt 0:00:06]} 39. f3 {[%emt 0:01:25]} Bf6 {[%emt 0:01:42]} 40. Kd2 {[%emt 0:00:30]} Bg5+ {[%emt 0:00:30]} 41. Ke2 {[%emt 0:00:00]} Bf6 {[%emt 0:00:00]} 42. Na2 {[%emt 0:02:14]} Bh4 {[%emt 0:00:00]} 43. g4 {[%emt 0:02:55]} Bg5 {[%emt 0:00:00]} 44. Nc3 {[%emt 0:01:45]} Bc1 {[%emt 0:00:00]} 45. Kd1 {[%emt 0:02:53]} Bb2 {[%emt 0:04:46]} 46. Nb1 {[%emt 0:01:13]} Bd4 {[%emt 0:00:38]} 47. Kc2 {[%emt 0:00:13]} Kc7 {[%emt 0:01:19]} 48. Na3 {[%emt 0:01:14]} Kb6 {[%emt 0:00:09]} 49. Kb3 {[%emt 0:00:48]} Bf2 {[%emt 0:01:34]} 50. Nc2 {[%emt 0:01:38]} Kc7 {[%emt 0:00:34]} 51. Kc3 {[%emt 0:00:36]} Kb6 {[%emt 0:00:29]} 52. Kd2 {[%emt 0:01:04] Weighted Error Value: White=0.17 (very precise) /Black=0.21 (precise)} 1/2-1/2

[Event "GER-ch Youth-U18w 2023"]
[Site "Willingen"]
[Date "2023.06.03"]
[Round "9.4"]
[White "Albayrak, Nese Pinar"]
[Black "Derling, Charlotte"]
[Result "1/2-1/2"]
[Annotator "NA RC COMBH"]
[ECO "B78"]
[WhiteElo "1763"]
[BlackElo "1664"]
[PlyCount "93"]
[EventDate "2022.06.05"]
[EventType "swiss"]
[EventRounds "9"]
[EventCountry "GER"]
[SourceTitle "playchess.com"]
[Source "ChessBase"]
[SourceQuality "1"]
[TimeControl "40/4500+30:900+30"]

1. e4 {[%emt 0:00:00]} c5 {[%emt 0:00:00]} 2. Nf3 {[%emt 0:00:00]} d6 {[%emt 0:00:00]} 3. d4 {[%emt 0:00:00]} cxd4 {[%emt 0:00:00]} 4. Nxd4 {[%emt 0:00:00]} Nf6 {[%emt 0:00:00]} 5. Nc3 {[%emt 0:00:00]} g6 {[%emt 0:00:00]} 6. Be3 {[%emt 0:00:00]} Bg7 {[%emt 0:00:00]} 7. f3 {[%emt 0:00:00]} Nc6 {[%emt 0:00:00]} 8. Bc4 {[%emt 0:00:00]} O-O {[%emt 0:00:00]} 9. Qd2 {[%emt 0:00:00]} Bd7 {[%emt 0:00:00]} 10. O-O-O {[%emt 0:00:00]} Rc8 {[%emt 0:00:00]} 11. Bb3 {[%emt 0:00:00]} Nxd4 {[%emt 0:00:00]} 12. Bxd4 {[%emt 0:00:00]} b5 {[%emt 0:00:00]} 13. Nd5 {[%emt 0:03:49]} Nxd5 {[%emt 0:00:00]} 14. Bxg7 {[%emt 0:02:24]} Kxg7 {[%emt 0:00:00]} 15. exd5 {[%emt 0:00:49]} a5 {[%emt 0:00:00]} 16. a3 {[%emt 0:01:00]} Kg8 {[%emt 0:00:00]} 17. h4 {[%emt 0:09:42]} b4 {[%emt 0:00:00]} 18. a4 {[%emt 0:18:27]} Qe8 {[%emt 0:18:45]} 19. h5 {[%emt 0:01:37]} Bf5 {[%emt 0:16:50]} 20. Kb1 {[%emt 0:13:54]} gxh5 {[%emt 0:08:03]} 21. Rxh5 {[%emt 0:11:57]} Bg6 {[%emt 0:02:14]} 22. Rh2 {[%emt 0:03:09]} f6 {[%emt 0:07:37]} 23. g4 {[%emt 0:02:14]} Qf7 {[%emt 0:02:34]} 24. f4 {[%emt 0:02:54]} f5 {[%emt 0:01:43]} 25. g5 {[%emt 0:00:51]} Rc5 {[%emt 0:02:32]} 26. Re1 {[%emt 0:04:18]} Re8 {[%emt 0:03:56]} 27. Re6 {[%emt 0:03:13]} Qg7 {[%emt 0:01:36]} 28. Qe1 {[%emt 0:03:14]} Kf8 {[%emt 0:02:51]} 29. Qh4 {[%emt 0:03:33]} Kg8 {[%emt 0:01:56]} 30. Qe1 {[%emt 0:00:15]} Kf8 {[%emt 0:00:13]} 31. Rd2 {[%emt 0:01:56]} Bf7 {[%emt 0:02:20]} 32. Ree2 {[%emt 0:00:10]} Bg6 {[%emt 0:01:04]} 33. Qf2 {[%emt 0:00:19]} Rec8 {[%emt 0:01:20]} 34. Qd4 {[%emt 0:00:27]} Qxd4 {[%emt 0:01:51]} 35. Rxd4 {[%emt 0:00:01]} R8c7 {[%emt 0:00:46]} 36. Rd3 {[%emt 0:01:06]} Rb7 {[%emt 0:03:12]} 37. Kc1 {[%emt 0:00:13]} Kf7 {[%emt 0:03:24]} 38. Kd2 {[%emt 0:00:15]} Rc8 {[%emt 0:00:43]} 39. Rde3 {[%emt 0:00:46]} Rcc7 {[%emt 0:01:06]} 40. Rd3 {[%emt 0:00:23]} Rc8 {[%emt 0:01:19]} 41. Rd4 {[%emt 0:00:00]} Rbc7 {[%emt 0:00:00]} 42. Kd3 {[%emt 0:00:00]} Rc5 {[%emt 0:00:00]} 43. Bc4 {[%emt 0:00:00]} R8c7 {[%emt 0:00:00]} 44. c3 {[%emt 0:05:56]} bxc3 {[%emt 0:00:00]} 45. bxc3 {[%emt 0:00:50]} Kg7 {[%emt 0:00:00]} 46. Rb2 {[%emt 0:00:43]} Be8 {[%emt 0:00:00]} 47. Ra2 {[%emt 0:01:36]} 1/2-1/2

[Event "GER-ch Youth-U18w 2023"]
[Site "Willingen"]
[Date "2023.06.03"]
[Round "9.5"]
[White "Glowiak, Alexandra"]
[Black "Peglau, Mirjam"]
[Result "1-0"]
[Annotator "TA"]
[ECO "B43"]
[WhiteElo "1660"]
[BlackElo "1932"]
[PlyCount "93"]
[EventDate "2022.06.05"]
[EventType "swiss"]
[EventRounds "9"]
[EventCountry "GER"]
[SourceTitle "playchess.com"]
[Source "ChessBase"]
[SourceQuality "1"]
[TimeControl "40/4500+30:900+30"]

{[%evp 11,93,16,17,-2,41,47,60,1,12,0,4,0,0,-16,-7,-21,54,57,67,20,25,4,43,45,41,37,37,20,36,22,19,29,32,26,39,30,48,52,58,67,71,0,0,0,34,34,34,34,34,34,34,34,34,28,28,29,59,60,62,0,0,0,61,0,0,0,62,62,62,62,287,278,424,400,334,334,629,624,595,556,468,448,654,356]} 1. e4 {[%emt 0:00:00]} c5 {[%emt 0:00:00]} 2. Nf3 {[%emt 0:00:00]} e6 {[%emt 0:00:00]} 3. d4 {[%emt 0:00:00]} cxd4 {[%emt 0:00:00]} 4. Nxd4 {[%emt 0:00:00]} a6 {[%emt 0:00:00]} 5. Nc3 {[%emt 0:00:00]} b5 {[%emt 0:00:00]} 6. a3 {[%emt 0:00:00]} Bb7 {[%emt 0:00:00]} 7. Be3 {[%emt 0:00:00] B43: Sicilian: Kan Variation: 5 Nc3.} Ne7 {[%emt 0:00:00]} 8. Be2 {[%emt 0:01:40]} Nbc6 {[%emt 0:00:00]} 9. Nxc6 {[%emt 0:04:12]} (9. Nb3 $14) 9... Nxc6 $11 {[%emt 0:00:00]} 10. O-O {[%emt 0:05:14]} Be7 {[%emt 0:00:00]} 11. Qd2 {[%emt 0:07:07]} O-O {[%emt 0:00:00]} 12. Rad1 {[%emt 0:02:13]} d6 {[%emt 0:00:00] [#]} 13. Bf4 $146 {[%emt 0:01:14][%cal Rf4d6]} ({Predecessor:} 13. f4 Rc8 14. Bf3 Qc7 15. Qf2 Qb8 16. Rd2 Na5 17. Ba7 Qa8 18. Bd4 {0-1 Suarez,M-Dolezal,C (2290) Buenos Aires op 1995 (2)}) 13... e5 {[%emt 0:02:06]} (13... Ne5 $11) 14. Be3 $14 {[%emt 0:01:24]} Na5 {[%emt 0:06:10]} 15. f3 {[%emt 0:28:20]} (15. b3 $14) 15... Rc8 $11 {[%emt 0:06:12]} 16. a4 {[%emt 0:05:17]} Nc4 {[%emt 0:04:05]} (16... b4 $5 {[%cal Rb4c3]} 17. Na2 b3 $11) 17. Bxc4 {[%emt 0:00:15]} bxc4 {[%emt 0:00:12]} 18. Nd5 {[%emt 0:00:48]} Bxd5 {[%emt 0:02:31]} 19. Qxd5 {[%emt 0:00:12]} Qc7 {[%emt 0:00:36]} 20. b4 {[%emt 0:05:50] b5 would be deadly.} cxb3 {[%emt 0:03:41]} 21. cxb3 {[%emt 0:00:10]} Qc3 {[%emt 0:03:52] Repels b4} 22. Bb6 {[%emt 0:02:33]} Bg5 {[%emt 0:18:32]} 23. Qd3 {[%emt 0:05:34]} (23. Qxd6 $2 Rc6 24. Qd3 Qxd3 25. Rxd3 Rxb6 $19) (23. h3 {with more complications.} Rc6 24. Rd3 Qc2 25. Rf2) 23... Qb2 {[%emt 0:12:28]} 24. Qxa6 {[%emt 0:05:39]} Rc2 {[%emt 0:10:46]} 25. Rf2 {[%emt 0:00:25]} (25. Rxd6 $2 Rxg2+ 26. Kh1 Rxh2+ 27. Kg1 Qg2#) 25... Qxb3 {[%emt 0:01:01] [#] Strongly threatening ...Rxf2.} 26. Rxc2 {[%emt 0:00:57]} (26. Rxd6 $2 {loses.} Be3 27. Bxe3 Qxe3 $19) (26. Qb5 $16 Qc4 27. g3 (27. Rxd6 $2 Rc1+) (27. Rxc2 Qxc2 28. Rf1 h6 $11)) 26... Qxc2 {[%emt 0:00:02]} 27. Rf1 {[%emt 0:03:28]} h5 {[%emt 0:02:45]} 28. a5 {[%emt 0:01:25] aiming for Qb7.} Qc6 {[%emt 0:05:56] Wards off Qb7} 29. Qd3 {[%emt 0:00:36] Dodges Be3+} Bd8 $1 {[%emt 0:02:29]} 30. Bxd8 {[%emt 0:03:01]} Rxd8 $14 {[%emt 0:00:01][%mdl 4096] Endgame KQR-KQR} 31. Ra1 {[%emt 0:00:24]} Ra8 {[%emt 0:01:19]} 32. Qd5 {[%emt 0:01:18]} Qa6 {[%emt 0:03:32]} 33. Kf2 {[%emt 0:02:08]} g6 {[%emt 0:01:21]} 34. Rb1 {[%emt 0:00:23] And now Rb6 would win.} Ra7 {[%emt 0:00:58]} ({Weaker is} 34... Qa7+ 35. Kg3 h4+ 36. Kxh4 $16) 35. Rb6 {[%emt 0:00:37]} ({Better is} 35. Kg3 $1 $14) 35... Qxa5 $11 {[%emt 0:00:23]} 36. Qxd6 {[%emt 0:00:30]} Kh7 {[%emt 0:01:30]} (36... Ra8 $11) 37. Qf6 {[%emt 0:00:27]} (37. Kg3 $14) 37... Qc5+ $1 {[%emt 0:00:50]} 38. Kg3 {[%emt 0:00:10] Rb8 would kill now.} Qc7 {[%emt 0:00:34] Prevents Rb8.} (38... Qe7 $1 $11) 39. Rb5 $36 {[%emt 0:00:34][%mdl 2048] White is pushing.} Qe7 {[%emt 0:00:34]} 40. Qxe5 {[%emt 0:00:36] White is more active.} Qd7 $2 {[%emt 0:00:21] [#] A mistake that costs the game.} ({Black should play} 40... Qxe5+ $14 41. Rxe5 Kg7) 41. Rb8 $1 $18 {[%emt 0:00:00][%csl Ge5][%cal Rb8h8]} f6 {[%emt 0:00:00]} (41... h4+ {is a better defense.} 42. Kxh4 Qe7+ 43. Qxe7 Rxe7) 42. Qxf6 {[%emt 0:00:00][%csl Gb8][%cal Rf6h8]} Qc7+ {[%emt 0:00:00]} 43. Qf4 {[%emt 0:00:00]} Qe7 $2 {[%emt 0:00:49]} (43... h4+ 44. Kg4 (44. Kxh4 {leads to mate.} Qxf4+ 45. Kh3 Qxb8 46. e5 Qxe5 47. Kh4 Qxh2+ 48. Kg5 Rf7 49. Kg4 Rf4+ 50. Kg5 Qh6#) 44... Qxf4+ 45. Kxf4 h3 46. gxh3 Ra2) 44. Rf8 {[%emt 0:00:10] White is clearly winning.} Kg7 {[%emt 0:02:57]} 45. Rc8 {[%emt 0:02:05]} Rb7 {[%emt 0:04:24]} 46. h4 {[%emt 0:05:14]} Rd7 {[%emt 0:03:41]} (46... Kh7 $142 47. Rc6 Kg7) 47. Rc6 {[%emt 0:04:55] Weighted Error Value: White=0.12 (very precise) /Black=0.40} 1-0